lending/lending_fUSD_20250424
["ID","MTS","AMOUNT","RATE_DAILY","PERIOD"]
[358857207,1745488545221,-8869.55478005,0.0006,120]
[358857208,1745488545231,-13141.22793684,0.0006,120]
[358857209,1745488545240,-200.0,0.0006,120]
[358857210,1745488545249,-163358.54165022,0.0006,50]
[358857211,1745488545259,-2000.0,0.0006,120]
[358857212,1745488545268,-4271.45716321,0.0006,120]
[358857213,1745488545278,-11910.4225055,0.0006,120]
[358857214,1745488545287,-570.0,0.0006,120]
[358857215,1745488545297,-1000.0,0.0006,14]
[358857216,1745488545307,-2146.0,0.0006,120]
[358857217,1745488545316,-31000.61824746,0.0006,120]
[358857218,1745488545326,-1000000.0,0.0006,120]
[358857219,1745488545337,-1000.0,0.0006,30]
[358857220,1745488545346,-178.03118503,0.0006,120]
[358857221,1745488545356,-183.43830812,0.0006,120]
[358857222,1745488545366,-840.82745932,0.0006,120]
[358857223,1745488545376,-500.0,0.0006,120]
[358857224,1745488545386,-300.0,0.0006,2]
[358857225,1745488545397,-11245.31744798,0.0006,120]
[358857226,1745488545408,-1730.2613693,0.0006,120]
[358857227,1745488545418,-40497.00629053,0.0006,120]
[358857228,1745488545432,-313.64044011,0.0006,120]
[358857229,1745488545443,-1145.73795225,0.0006,30]
[358857230,1745488545453,-150.0,0.0006,30]
[358857231,1745488545464,-522.92067131,0.0006,30]
[358857232,1745488545474,-3547.70041671,0.0006,30]
[358857233,1745488545484,-900.0,0.0006,61]
[358857234,1745488545493,-567.230108,0.0006,120]
[358857235,1745488545504,-2000.0,0.0006,120]
[358857236,1745488545515,-1000000.0,0.0006,120]
[358857237,1745488545524,-3933.54484113,0.0006,120]
[358857238,1745488545534,-7126.91322553,0.0006,30]
[358857239,1745488545543,-23082.80735601,0.0006,50]
[358857240,1745488545552,-13978.49849135,0.0006,120]
[358857241,1745488545562,-117868.99757085,0.0006,120]
[358857242,1745488545571,-291.0,0.0006,120]
[358857243,1745488545581,-26380.0,0.0006,120]
[358857244,1745488545590,-742.7688482,0.0006,120]
[358857245,1745488545600,-184.63236351,0.0006,30]
[358857246,1745488545609,-153.35372584,0.0006,120]
[358857247,1745488545619,-9980.0,0.0006,120]
[358857248,1745488545628,-4125.83014927,0.0006,120]
[358857249,1745488545639,-25000.0,0.0006,120]
[358857250,1745488545649,-1718.28212647,0.0006,120]
[358857251,1745488545659,-4000.0,0.0006,2]
[358857252,1745488545669,-1242.47202958,0.0006,2]
[358857253,1745488545678,-1429.0,0.0006,120]
[358857254,1745488545688,-241.92134604,0.0006,60]
[358857255,1745488545698,-54259.82502728,0.0006,30]
[358857256,1745488545707,-4317.0,0.0006,120]
[358857257,1745488545717,-1000000.0,0.0006,120]
[358857258,1745488545727,-1000000.0,0.0006,120]
[358857259,1745488545736,-1000000.0,0.0006,120]
[358857260,1745488545746,-1000000.0,0.0006,120]
[358857261,1745488545756,-1000000.0,0.0006,120]
[358857262,1745488545765,-1000000.0,0.0006,120]
[358857263,1745488545775,-1000000.0,0.0006,120]
[358857264,1745488545786,-1000000.0,0.0006,120]
[358857265,1745488545796,-1000000.0,0.0006,120]
[358857266,1745488545807,-1000000.0,0.0006,120]
[358857267,1745488545816,-1000000.0,0.0006,120]
[358857268,1745488545826,-1000000.0,0.0006,120]
[358857269,1745488545835,-915189.90463092,0.0006,120]
[358857270,1745488556793,250.0,0.00017,2]
[358857271,1745488556894,300.0,0.00019,2]
[358857272,1745488558006,150.0,0.000187,2]
[358857273,1745488558041,250.0,0.000187,2]
[358857274,1745488558074,250.0,0.00018,2]
[358857275,1745488560491,474.13,0.00018405,2]
[358857276,1745488562351,-600.0,0.00046166,30]
[358857277,1745488562381,-600.0,0.00046166,30]
[358857278,1745488562410,-600.0,0.00046166,30]
[358857279,1745488562441,-600.0,0.00046166,30]
[358857280,1745488562473,-600.0,0.00046166,30]
[358857281,1745488562504,-600.0,0.00046166,30]
[358857282,1745488562537,-600.0,0.00046166,30]
[358857283,1745488562566,-600.0,0.00046166,30]
[358857284,1745488562596,-600.0,0.00046166,30]
[358857285,1745488562624,-600.0,0.00046166,30]
[358857286,1745488562653,-600.0,0.00046166,30]
[358857287,1745488562684,-600.0,0.00046166,30]
[358857288,1745488562715,-600.0,0.00046166,30]
[358857289,1745488562744,-600.0,0.00046166,30]
[358857290,1745488562772,-600.0,0.00046166,30]
[358857291,1745488562801,-600.0,0.00046166,30]
[358857292,1745488562830,-600.0,0.00046166,30]
[358857293,1745488562861,-600.0,0.00046166,30]
[358857294,1745488562890,-600.0,0.00046166,30]
[358857295,1745488562920,-153.23765946,0.00046166,30]
[358857296,1745488562949,-1008.0,0.00046166,30]
[358857297,1745488562980,-1008.0,0.00046166,30]
[358857298,1745488563013,-1008.0,0.00046166,30]
[358857299,1745488563048,-1008.0,0.00046166,30]
[358857300,1745488563081,-1008.0,0.00046166,30]
[358857301,1745488563114,-1008.0,0.00046166,30]
[358857302,1745488563146,-1008.0,0.00046166,30]
[358857303,1745488563177,-1008.0,0.00046166,30]
[358857304,1745488563208,-1008.0,0.00046166,30]
[358857305,1745488563240,-1008.0,0.00046166,30]
[358857306,1745488563271,-1008.0,0.00046166,30]
[358857307,1745488563302,-1008.0,0.00046166,30]
[358857308,1745488563333,-1008.0,0.00046166,30]
[358857309,1745488563365,-1008.0,0.00046166,30]
[358857310,1745488563396,-1008.0,0.00046166,30]
[358857311,1745488563434,-1008.0,0.00046166,30]
[358857312,1745488563466,-1008.0,0.00046166,30]
[358857313,1745488563498,-1008.0,0.00046166,30]
[358857314,1745488563532,-1008.0,0.00046166,30]
[358857315,1745488563563,-1008.0,0.00046166,30]
[358857316,1745488563596,-1008.0,0.00046166,30]
[358857317,1745488563627,-1008.0,0.00046166,30]
[358857318,1745488563658,-1008.0,0.00046166,30]
[358857319,1745488563688,-1008.15,0.00046166,30]
[358857320,1745488563720,-764.87,0.00046166,30]
[358857321,1745488563751,-764.87,0.00046166,30]
[358857322,1745488563784,-764.87,0.00046166,30]
[358857323,1745488563816,-764.87,0.00046166,30]
[358857324,1745488563849,-764.87,0.00046166,30]
[358857325,1745488563880,-764.87,0.00046166,30]
[358857326,1745488563912,-764.87,0.00046166,30]
[358857327,1745488563944,-764.87,0.00046166,30]
[358857328,1745488563975,-764.87,0.00046166,30]
[358857329,1745488564007,-764.87,0.00046166,30]
[358857330,1745488564039,-764.87,0.00046166,30]
[358857331,1745488564070,-764.87,0.00046166,30]
[358857332,1745488564101,-764.87,0.00046166,30]
[358857333,1745488564132,-764.87,0.00046166,30]
[358857334,1745488564164,-764.87,0.00046166,30]
[358857335,1745488564195,-764.87,0.00046166,30]
[358857336,1745488564226,-764.87,0.00046166,30]
[358857337,1745488564258,-764.87,0.00046166,30]
[358857338,1745488564291,-764.87,0.00046166,30]
[358857339,1745488564324,-764.87,0.00046166,30]
[358857340,1745488564355,-764.87,0.00046166,30]
[358857341,1745488564386,-764.87,0.00046166,30]
[358857342,1745488564418,-764.87,0.00046166,30]
[358857343,1745488564453,-765.09,0.00046166,30]
[358857344,1745488564485,-500.0,0.00046166,30]
[358857345,1745488564516,-500.0,0.00046166,30]
[358857346,1745488564547,-500.0,0.00046166,30]
[358857347,1745488564579,-500.0,0.00046166,30]
[358857348,1745488564610,-500.0,0.00046166,30]
[358857349,1745488564643,-500.0,0.00046166,30]
[358857350,1745488564675,-441.69,0.00046166,30]
[358857351,1745488564704,-528.53,0.00046166,30]
[358857352,1745488564737,-528.53,0.00046166,30]
[358857353,1745488564767,-528.53,0.00046166,30]
[358857354,1745488564799,-528.53,0.00046166,30]
[358857355,1745488564830,-528.53,0.00046166,30]
[358857356,1745488564861,-528.53,0.00046166,30]
[358857357,1745488564892,-528.53,0.00046166,30]
[358857358,1745488564924,-528.53,0.00046166,30]
[358857359,1745488564957,-528.53,0.00046166,30]
[358857360,1745488564987,-528.53,0.00046166,30]
[358857361,1745488565017,-528.53,0.00046166,30]
[358857362,1745488565047,-528.53,0.00046166,30]
[358857363,1745488565079,-528.53,0.00046166,30]
[358857364,1745488565112,-528.53,0.00046166,30]
[358857365,1745488565145,-528.53,0.00046166,30]
[358857366,1745488565176,-528.53,0.00046166,30]
[358857367,1745488565208,-528.53,0.00046166,30]
[358857368,1745488565239,-528.53,0.00046166,30]
[358857369,1745488565270,-528.53,0.00046166,30]
[358857370,1745488565304,-528.53,0.00046166,30]
[358857371,1745488565336,-528.53,0.00046166,30]
[358857372,1745488565368,-528.53,0.00046166,30]
[358857373,1745488565400,-528.53,0.00046166,30]
[358857374,1745488565436,-528.6,0.00046166,30]
[358857375,1745488565470,-2106609.66712636,0.00046166,120]
[358857376,1745488565503,-300000.0,0.00046166,30]
[358857379,1745488601297,154.75,0.00028247,120]
[358857388,1745488714748,-325584.71,0.00046071,30]
[358857389,1745488714776,-325584.71,0.00046071,30]
[358857390,1745488714805,-325584.71,0.00046071,30]
[358857391,1745488714832,-325584.71,0.00046071,30]
[358857392,1745488714860,-325584.71,0.00046071,30]
[358857393,1745488714887,-325584.71,0.00046071,30]
[358857394,1745488714913,-325584.71,0.00046071,30]
[358857395,1745488714941,-325584.71,0.00046071,30]
[358857396,1745488714967,-325584.71,0.00046071,30]
[358857397,1745488714993,-325584.71,0.00046071,30]
[358857398,1745488715026,-325584.71,0.00046071,30]
[358857399,1745488715053,-325584.71,0.00046071,30]
[358857400,1745488715079,-325584.71,0.00046071,30]
[358857401,1745488715108,-325584.71,0.00046071,30]
[358857402,1745488715136,-325584.71,0.00046071,30]
[358857403,1745488715165,-116229.35,0.00046071,30]
[358857404,1745488718833,-209355.36,0.00046071,30]
[358857405,1745488718860,-325584.71,0.00046071,30]
[358857406,1745488718887,-325584.71,0.00046071,30]
[358857407,1745488718914,-325584.71,0.00046071,30]
[358857408,1745488718942,-325584.71,0.00046071,30]
[358857409,1745488718968,-325584.71,0.00046071,30]
[358857410,1745488718994,-325584.71,0.00046071,30]
[358857411,1745488719021,-325584.71,0.00046071,30]
[358857412,1745488719045,-325584.75008001,0.00046071,30]
[358857413,1745488719077,-1033.04,0.00046071,30]
[358857414,1745488719104,-1033.04,0.00046071,30]
[358857415,1745488719131,-1033.04,0.00046071,30]
[358857416,1745488719790,-1033.04,0.00046071,30]
[358857417,1745488719820,-1033.04,0.00046071,30]
[358857418,1745488719846,-1033.04,0.00046071,30]
[358857419,1745488719874,-1033.04,0.00046071,30]
[358857420,1745488719904,-1033.04,0.00046071,30]
[358857421,1745488719931,-1033.04,0.00046071,30]
[358857422,1745488719959,-1033.04,0.00046071,30]
[358857423,1745488719987,-1033.04,0.00046071,30]
[358857424,1745488720013,-1033.04,0.00046071,30]
[358857425,1745488720039,-1033.04,0.00046071,120]
[358857426,1745488720066,-1033.04,0.00046071,120]
[358857427,1745488720095,-1033.04,0.00046071,120]
[358857428,1745488720122,-1033.04,0.00046071,120]
[358857429,1745488720149,-1033.04,0.00046071,120]
[358857430,1745488720175,-1033.04,0.00046071,120]
[358857431,1745488720203,-1033.04,0.00046071,120]
[358857432,1745488720230,-1033.04,0.00046071,120]
[358857433,1745488720258,-1033.04,0.00046071,120]
[358857434,1745488720286,-1033.04,0.00046071,120]
[358857435,1745488720314,-1033.04,0.00046071,120]
[358857436,1745488720341,-1033.14,0.00046071,120]
[358857439,1745488754023,-2000.0,0.000199,2]
[358857440,1745488761582,-500.0,0.000199,2]
[358857441,1745488761604,-1500.0,0.000199,2]
[358857442,1745488769038,-1000.0,0.000199,2]
[358857443,1745488769062,-300.0,0.00019998,2]
[358857444,1745488769089,-681.64181319,0.0002,2]
[358857445,1745488769113,-18.35818681,0.0002,2]
[358857446,1745488777074,-663.28362638,0.0002,2]
[358857447,1745488777098,-681.64181319,0.0002,2]
[358857448,1745488777124,-655.07456043,0.0002,2]
[358857449,1745488784184,-26.56725276,0.0002,2]
[358857450,1745488784208,-681.64181319,0.0002,2]
[358857451,1745488784234,-681.64181319,0.0002,2]
[358857452,1745488784260,-610.14912086,0.0002,2]
[358857453,1745488790528,-71.49269233,0.0002,2]
[358857454,1745488790555,-681.64181319,0.0002,2]
[358857455,1745488790579,-681.64181319,0.0002,2]
[358857456,1745488790603,-565.22368129,0.0002,2]
[358857457,1745488796485,-116.4181319,0.0002,2]
[358857458,1745488796513,-681.64181319,0.0002,2]
[358857459,1745488796537,-681.64181319,0.0002,2]
[358857460,1745488796561,-520.29824172,0.0002,2]
[358857461,1745488803088,-161.34357147,0.0002,2]
[358857462,1745488803115,-681.64181319,0.0002,2]
[358857463,1745488803141,-681.64181319,0.0002,2]
[358857464,1745488803167,-475.37280215,0.0002,2]
[358857466,1745488809178,-206.26901104,0.0002,2]
[358857467,1745488809206,-681.64181319,0.0002,2]
[358857468,1745488809236,-681.64181319,0.0002,2]
[358857469,1745488809263,-430.44736258,0.0002,2]
[358857470,1745488815040,-251.19445061,0.0002,2]
[358857471,1745488815067,-681.64181319,0.0002,2]
[358857472,1745488815093,-681.64181319,0.0002,2]
[358857473,1745488815119,-385.52192301,0.0002,2]
[358857476,1745488820499,-296.11989018,0.0002,2]
[358857477,1745488820528,-681.64181319,0.0002,2]
[358857478,1745488820556,-681.64181319,0.0002,2]
[358857479,1745488820580,-340.59648344,0.0002,2]
[358857489,1745489105385,1649.69,0.00019,2]
[358857491,1745489107112,1649.69,0.00019,2]
[358857492,1745489112584,1649.69,0.00019,2]
[358857502,1745489220944,-192.56658922,0.000199,2]
[358857503,1745489220968,-7.43341078,0.00019999,2]
[358857545,1745489410976,-192.56658921,0.00019899,2]
[358857546,1745489411000,-57.43341079,0.00019973,2]
[358857549,1745489430918,-242.55756673,0.00019872,2]
[358857550,1745489432428,-70.32888327,0.00019872,2]
[358857551,1745489432439,-454.60216505,0.00019973,2]
[358857552,1745489432449,-500.0,0.00019973,2]
[358857553,1745489432460,-500.0,0.00019973,2]
[358857554,1745489432470,-300.0,0.00019999,2]
[358857555,1745489432481,-1200.0,0.00019999,2]
[358857556,1745489432492,-150.0,0.0002,2]
[358857557,1745489432502,-250.0,0.0002,2]
[358857558,1745489432512,-39.29162749,0.0002,2]
[358857559,1745489432525,-475.3501857,0.0002,2]
[358857560,1745489432535,-514.64181319,0.0002,2]
[358857561,1745489432545,-514.64181319,0.0002,2]
[358857562,1745489432555,-514.64181319,0.0002,2]
[358857563,1745489432565,-514.64181319,0.0002,2]
[358857564,1745489432576,-514.64181319,0.0002,2]
[358857565,1745489432587,-514.64181319,0.0002,2]
[358857566,1745489432597,-514.64181319,0.0002,2]
[358857567,1745489432608,-514.64181319,0.0002,2]
[358857568,1745489432618,-514.64181319,0.0002,2]
[358857570,1745489432628,-514.64181319,0.0002,2]
[358857573,1745489432639,-143.0621324,0.0002,2]
[358857575,1745489432651,-371.57968079,0.0002,2]
[358857577,1745489432661,-514.64181319,0.0002,2]
[358857579,1745489432671,-514.64181319,0.0002,2]
[358857581,1745489432681,-514.64181319,0.0002,2]
[358857583,1745489432691,-514.64181319,0.0002,2]
[358857585,1745489432704,-514.64181319,0.0002,2]
[358857587,1745489432713,-387.89837806,0.0002,2]
[358857590,1745489432725,-126.74343513,0.0002,2]
[358857592,1745489432735,-514.64181319,0.0002,2]
[358857594,1745489432745,-514.64181319,0.0002,2]
[358857596,1745489432756,-514.64181319,0.0002,2]
[358857598,1745489432767,-514.64181319,0.0002,2]
[358857600,1745489432777,-514.64181319,0.0002,2]
[358857602,1745489432787,-514.64181319,0.0002,2]
[358857604,1745489432797,-514.64181319,0.0002,2]
[358857606,1745489432807,-514.64181319,0.0002,2]
[358857608,1745489432817,-514.64181319,0.0002,2]
[358857610,1745489432827,-514.64181319,0.0002,2]
[358857613,1745489432843,-514.64181319,0.0002,2]
[358857615,1745489432853,-514.64181319,0.0002,2]
[358857617,1745489432863,-514.64181319,0.0002,2]
[358857619,1745489432873,-514.64181319,0.0002,2]
[358857621,1745489432883,-88.24644021,0.0002,2]
[358857623,1745489432896,-426.39537298,0.0002,2]
[358857625,1745489432905,-514.64181319,0.0002,2]
[358857627,1745489432915,-303.11816383,0.0002,2]
[358858130,1745489438195,-211.52364936,0.0002,2]
[358858132,1745489438208,-514.64181319,0.0002,2]
[358858134,1745489438218,-514.64181319,0.0002,2]
[358858137,1745489438228,-514.64181319,0.0002,2]
[358858139,1745489438239,-514.64181319,0.0002,2]
[358858141,1745489438249,-514.64181319,0.0002,2]
[358858143,1745489438260,-514.64181319,0.0002,2]
[358858145,1745489438270,-514.64181319,0.0002,2]
[358858147,1745489438280,-514.64181319,0.0002,2]
[358858149,1745489438293,-514.64181319,0.0002,2]
[358858151,1745489438303,-514.64181319,0.0002,2]
[358858153,1745489438312,-514.64181319,0.0002,2]
[358858155,1745489438322,-514.64181319,0.0002,2]
[358858157,1745489438332,-514.64181319,0.0002,2]
[358858159,1745489438341,-514.64181319,0.0002,2]
[358858161,1745489438351,-514.64181319,0.0002,2]
[358858164,1745489438361,-514.64181319,0.0002,2]
[358858166,1745489438371,-514.64181319,0.0002,2]
[358858168,1745489438381,-514.64181319,0.0002,2]
[358858170,1745489438391,-514.64181319,0.0002,2]
[358858172,1745489438401,-514.64181319,0.0002,2]
[358858174,1745489438411,-514.64181319,0.0002,2]
[358858176,1745489438420,-506.60053486,0.0002,2]
[358858178,1745489438430,-506.60053486,0.0002,2]
[358858180,1745489438440,-506.60053486,0.0002,2]
[358858182,1745489438450,-506.60053486,0.0002,2]
[358858184,1745489438460,-506.60053486,0.0002,2]
[358858187,1745489438470,-506.60053486,0.0002,2]
[358858190,1745489438480,-506.60053486,0.0002,2]
[358858193,1745489438490,-506.60053486,0.0002,2]
[358858195,1745489438501,-506.60053486,0.0002,2]
[358858197,1745489438511,-506.60053486,0.0002,2]
[358858199,1745489438520,-506.60053486,0.0002,2]
[358858201,1745489438530,-506.60053486,0.0002,2]
[358858203,1745489438540,-506.60053486,0.0002,2]
[358858205,1745489438550,-506.60053486,0.0002,2]
[358858207,1745489438560,-506.60053486,0.0002,2]
[358858209,1745489438569,-506.60053486,0.0002,2]
[358858211,1745489438579,-506.60053486,0.0002,2]
[358858213,1745489438589,-506.60053486,0.0002,2]
[358858215,1745489438599,-506.60053486,0.0002,2]
[358858217,1745489438609,-506.60053486,0.0002,2]
[358858219,1745489438619,-506.60053486,0.0002,2]
[358858221,1745489438630,-506.60053486,0.0002,2]
[358858224,1745489438641,-506.60053486,0.0002,2]
[358858226,1745489438651,-506.60053486,0.0002,2]
[358858228,1745489438662,-506.60053486,0.0002,2]
[358858230,1745489438672,-506.60053486,0.0002,2]
[358858232,1745489438682,-506.60053486,0.0002,2]
[358858234,1745489438693,-506.60053486,0.0002,2]
[358858236,1745489438707,-506.60053486,0.0002,2]
[358858238,1745489438716,-506.60053486,0.0002,2]
[358858241,1745489438726,-757.00339,0.0002,2]
[358858244,1745489438736,-506.60053489,0.0002,2]
[358858247,1745489438747,-506.60053488,0.0002,2]
[358858249,1745489438757,-150.0,0.0002,2]
[358858251,1745489438766,-492.55322083,0.0002,2]
[358858254,1745489438777,-9778.01723529,0.0002019,2]
[358858257,1745489438787,-1529.76902895,0.000202,2]
[358858260,1745489438796,-250.0,0.00020432,2]
[358858263,1745489438806,-248.223,0.0002049,2]
[358858266,1745489438816,-474.13,0.00020669,2]
[358858269,1745489438825,-151.0,0.00020698,2]
[358858271,1745489438835,-151.0,0.00020698,2]
[358858273,1745489438844,-151.0,0.00020703,2]
[358858275,1745489438854,-151.0,0.00020703,2]
[358858277,1745489438865,-151.0,0.00020703,2]
[358858279,1745489438875,-151.0,0.00020706,2]
[358858281,1745489438886,-151.0,0.00020706,2]
[358858283,1745489438895,-151.0,0.0002071,2]
[358858285,1745489438905,-150.99,0.0002071,2]
[358858287,1745489438916,-151.0,0.0002071,2]
[358858289,1745489438925,-151.0,0.00020714,2]
[358858291,1745489438935,-599.4,0.00020717,2]
[358858293,1745489438945,-313.83594637,0.00020717,2]
[358858295,1745489438955,-179.99257452,0.00020717,2]
[358858297,1745489438965,-205.68374179,0.00020717,2]
[358858299,1745489438975,-199.01946281,0.00020717,2]
[358858301,1745489438985,-130704.10911889,0.00020718,2]
[358858303,1745489438995,-350.0,0.00021,2]
[358858305,1745489439006,-378.73073624,0.000215,2]
[358858307,1745489439015,-1682.8,0.000215,2]
[358858309,1745489439025,-487.70724251,0.00021524,2]
[358858311,1745489439035,-500.0,0.00021524,2]
[358858313,1745489439045,-263.98089763,0.00021524,2]
[358858315,1745489439055,-591.19722479,0.00021524,2]
[358858317,1745489439065,-500.0,0.00021524,2]
[358858319,1745489439075,-294.30947494,0.00021594,2]
[358858322,1745489439086,-152.87068962,0.00021659,2]
[358858324,1745489439095,-159.88253888,0.00021694,2]
[358858326,1745489439106,-420.0,0.00021777,2]
[358858328,1745489439116,-1680.0,0.00021881,2]
[358858330,1745489439126,-150.0,0.00021999,2]
[358858332,1745489439136,-250.0,0.00021999,2]
[358858334,1745489439146,-304.67,0.00022,2]
[358858336,1745489439155,-301.53,0.00022,2]
[358858338,1745489439164,-300.47,0.00022,2]
[358858340,1745489439173,-305.46,0.00022,2]
[358858342,1745489439188,-301.94,0.0002201,2]
[358858344,1745489439197,-153.739,0.00022641,2]
[358858346,1745489439207,-155.12338343,0.00022895,2]
[358858348,1745489439217,-400.0,0.00023,2]
[358858350,1745489439227,-587.0,0.00023712,2]
[358858352,1745489439236,-1649.69,0.000238,2]
[358858354,1745489439246,-2351.0,0.00023941,2]
[358858356,1745489439256,-300.0,0.00023999,2]
[358858358,1745489439266,-300.0,0.00023999,2]
[358858360,1745489439275,-1285.0,0.00024,2]
[358858362,1745489439285,-796.0,0.00024,2]
[358858364,1745489439295,-548.0,0.00024,2]
[358858366,1745489439305,-910.0,0.00024,2]
[358858368,1745489439314,-578.0,0.00024,2]
[358858370,1745489439324,-1445.0,0.00024,2]
[358858372,1745489439334,-2060.0,0.00024,2]
[358858374,1745489439344,-1133.0,0.00024,2]
[358858376,1745489439354,-825.062,0.00024,2]
[358858378,1745489439364,-3986.0,0.00024,2]
[358858381,1745489439374,-198.901,0.00024,2]
[358858383,1745489439384,-257.099,0.00024,2]
[358858385,1745489439394,-871.0,0.00024,2]
[358858387,1745489439404,-876.0,0.00024,2]
[358858389,1745489439415,-231.26,0.00024132,2]
[358858391,1745489439425,-9598.42249127,0.00024354,2]
[358858393,1745489439435,-2296.07182147,0.00024354,2]
[358858395,1745489439444,-112351.0393572,0.00024355,2]
[358858397,1745489439454,-2528.51871158,0.00024355,2]
[358858446,1745489439958,-358.28506387,0.00024357,2]
[358858449,1745489439981,-11683.81644688,0.00024361,2]
[358858451,1745489439993,-1170.40804101,0.00024362,2]
[358858453,1745489440003,-1931.73616606,0.00024362,2]
[358858455,1745489440012,-365.2591502,0.00024364,2]
[358858457,1745489440022,-11683.81644688,0.0002437,2]
[358858459,1745489440032,-112351.0393572,0.00024371,2]
[358858462,1745489440042,-11683.81644688,0.00024373,2]
[358858464,1745489440052,-661.30010545,0.00024374,2]
[358858466,1745489440061,-358.28506387,0.00024374,2]
[358858468,1745489440070,-358.28506387,0.00024376,2]
[358858470,1745489440079,-112351.0393572,0.00024376,2]
[358858473,1745489440089,-220.14405359,0.00024378,2]
[358858475,1745489440098,-842.91098081,0.00024379,2]
[358858477,1745489440108,-358.28506387,0.0002438,2]
[358858479,1745489440119,-1931.73616606,0.00024381,2]
[358858481,1745489440129,-2357.8094765,0.00024382,2]
[358858483,1745489440139,-1599.737082,0.00024385,2]
[358858485,1745489440149,-358.28506387,0.00024385,2]
[358858487,1745489440159,-2528.51871158,0.00024386,2]
[358858489,1745489440169,-2528.51871158,0.00024388,2]
[358858491,1745489440179,-1170.40804101,0.00024389,2]
[358858493,1745489440189,-365.2591502,0.00024389,2]
[358858495,1745489440199,-842.91098081,0.00024392,2]
[358858497,1745489440209,-112351.0393572,0.00024393,2]
[358858499,1745489440219,-11683.81644688,0.00024394,2]
[358858501,1745489440229,-2296.07182147,0.00024394,2]
[358858503,1745489440239,-220.14405359,0.00024394,2]
[358858505,1745489440249,-3097.10535533,0.00024395,2]
[358858508,1745489440259,-2296.07182147,0.00024397,2]
[358858510,1745489440269,-11683.81644688,0.00024397,2]
[358858513,1745489440279,-842.91098081,0.00024398,2]
[358858515,1745489440289,-661.30010545,0.00024398,2]
[358858518,1745489440299,-1599.737082,0.00024402,2]
[358858520,1745489440308,-1077.18642667,0.00024404,2]
[358858523,1745489440318,-1170.40804101,0.00024404,2]
[358858525,1745489440328,-1170.40804101,0.00024405,2]
[358858528,1745489440338,-2528.51871158,0.00024406,2]
[358858530,1745489440348,-3097.10535533,0.00024407,2]
[358858533,1745489440358,-1599.737082,0.00024408,2]
[358858535,1745489440368,-1931.73616606,0.0002441,2]
[358858538,1745489440378,-661.30010545,0.00024411,2]
[358858540,1745489440388,-365.2591502,0.00024411,2]
[358858543,1745489440399,-220.14405359,0.00024412,2]
[358858545,1745489440409,-842.91098081,0.00024413,2]
[358858547,1745489440418,-1170.40804101,0.00024413,2]
[358858549,1745489440429,-365.2591502,0.00024413,2]
[358858551,1745489440439,-9598.42249127,0.00024415,2]
[358858553,1745489440448,-220.14405359,0.00024417,2]
[358858555,1745489440459,-842.91098081,0.00024418,2]
[358858557,1745489440468,-1077.18642667,0.00024421,2]
[358858559,1745489440478,-365.2591502,0.00024423,2]
[358858561,1745489440488,-9598.42249127,0.00024424,2]
[358858563,1745489440498,-365.2591502,0.00024424,2]
[358858565,1745489440509,-3097.10535533,0.00024426,2]
[358858567,1745489440519,-358.28506387,0.0002443,2]
[358858570,1745489440534,-2357.8094765,0.00024431,2]
[358858572,1745489440544,-1599.737082,0.00024431,2]
[358858574,1745489440554,-1931.73616606,0.00024432,2]
[358858576,1745489440564,-1170.40804101,0.00024432,2]
[358858578,1745489440574,-1599.737082,0.00024432,2]